bitfinex/quotes_ETHUSD_20260302
["timestamp","ask_amount","ask_price","bid_price","bid_amount"]
[1772439377694,1.52619095,1936.0,1935.3,4.00135268]
[1772439377880,1.88953886,1936.0,1935.4,2.70961487]
[1772439378316,0.001,1935.9,1935.4,2.70961487]
[1772439379196,0.001,1935.9,1935.2,1.29180962]
[1772439379400,2.81624533,1935.6,1935.1,1.29302008]
[1772439379598,2.81624533,1935.6,1935.1,0.0011]
[1772439379813,2.81624533,1935.6,1935.1,1.29301535]
[1772439380008,2.81624533,1935.6,1935.1,1.2930211]
[1772439380211,2.81624533,1935.6,1935.1,0.0011]
[1772439380519,2.8162494,1935.6,1935.1,0.0011]
[1772439380892,1.29239291,1935.9,1935.2,2.70961487]
[1772439381091,2.817045,1935.9,1935.2,2.70961487]
[1772439381324,1.52465209,1935.7,1935.2,4.00140835]
[1772439381630,1.29239432,1935.9,1935.2,4.00145529]
[1772439382039,1.52465209,1935.8,1935.2,4.00145529]
[1772439382189,1.29239432,1935.9,1935.2,4.00145529]
[1772439383900,0.001,1935.9,1935.3,2.70961487]
[1772439385538,0.001,1935.9,1935.4,1.29172264]
[1772439386911,1.52565209,1935.9,1935.3,2.70961487]
[1772439387241,1.52565209,1935.9,1935.1,4.0025763]
[1772439387438,0.001,1935.9,1935.1,4.0025763]
[1772439387646,1.29238901,1935.9,1935.1,4.0025763]
[1772439388157,1.52465209,1935.8,1935.1,4.0025763]
[1772439388313,0.001,1935.9,1935.2,2.70961487]
[1772439388643,1.878,1935.9,1935.3,2.70961487]
[1772439389433,1.878,1935.9,1935.1,1.29302011]
[1772439389434,1.52465209,1935.7,1935.1,1.29302011]
[1772439389606,1.29244046,1935.9,1935.1,4.00263498]
[1772439389811,3.275,1935.8,1935.2,2.70961487]
[1772439390006,1.4,1935.8,1935.2,2.70961487]
[1772439390645,1.401,1935.8,1935.2,2.70961487]
[1772439392163,1.52465209,1935.5,1935.1,0.0011]
[1772439393159,1.872,1935.4,1935.1,0.0011]
[1772439393363,1.872,1935.4,1935.0,0.0011]
[1772439393364,3.39665209,1935.4,1935.0,0.0011]
[1772439393927,1.872,1935.4,1935.0,0.0011]
[1772439396551,3.1637245,1935.4,1935.0,0.0011]
[1772439398353,3.1637245,1935.4,1934.9,0.0011]
[1772439398667,1.52465209,1935.2,1934.6,0.0011]
[1772439398958,6.20132098,1935.4,1934.6,0.0011]
[1772439399682,2.80466889,1935.4,1934.6,4.00295471]
[1772439399882,1.868,1935.3,1934.7,2.70961487]
[1772439400192,3.15981329,1935.3,1934.8,1.29212321]
[1772439400366,1.868,1935.3,1934.8,4.00173808]
[1772439400541,3.15979353,1935.3,1934.8,4.00173808]
[1772439400736,3.15979353,1935.3,1934.8,2.70961487]
[1772439401274,1.868,1935.3,1934.8,2.70961487]
[1772439401783,5.16672567,1935.5,1934.8,2.70961487]
[1772439402010,1.867,1935.3,1934.8,2.70961487]
[1772439402642,3.15885392,1935.3,1934.8,4.00172886]
[1772439402869,3.15885392,1935.3,1935.0,0.0011]
[1772439403069,3.15985392,1935.3,1935.0,0.0011]
[1772439403791,3.15979076,1935.3,1935.0,0.0011]
[1772439404746,3.15979412,1935.3,1935.0,0.0011]
[1772439405680,3.15979258,1935.3,1935.0,0.0011]
[1772439406164,1.29279258,1935.3,1935.0,0.0011]
[1772439406368,3.15979258,1935.3,1935.0,0.0011]
[1772439406975,2.95727865,1935.2,1934.7,0.0011]
[1772439407146,1.868,1935.1,1934.7,0.0011]
[1772439407341,5.09279258,1935.3,1934.7,1.29326842]
[1772439407546,1.869,1935.2,1934.7,0.0011]
[1772439407771,2.94815098,1935.0,1934.5,0.0011]
[1772439408078,1.869,1935.2,1934.6,2.81144017]
[1772439408455,3.39365209,1935.2,1934.6,2.81144017]
[1772439409065,3.39365209,1935.2,1934.5,0.0011]
[1772439409066,1.29192289,1935.1,1934.5,0.0011]
[1772439409675,1.52465209,1935.0,1934.4,2.81144017]
[1772439409852,1.40390369,1935.0,1934.1,7.98178111]
[1772439410053,1.52465209,1934.5,1934.0,0.00153886]
[1772439410252,1.87,1934.4,1934.0,0.00153886]
[1772439410453,1.52465209,1934.3,1934.0,0.00153886]
[1772439411062,1.29252404,1934.2,1934.0,0.00153886]
[1772439411270,3.16243914,1934.4,1934.0,0.00153886]
[1772439412250,1.871,1934.3,1934.0,0.00153886]
[1772439412677,1.871,1934.2,1933.7,4.1042965]
[1772439412849,1.871,1934.2,1933.7,2.81144017]
[1772439413050,1.29259086,1934.1,1933.5,2.81144017]
[1772439413799,1.29259086,1934.1,1933.2,2.81144017]
[1772439413946,2.14094175,1934.0,1933.2,2.81144017]
[1772439414152,1.29259086,1934.1,1933.3,2.81144017]
[1772439414453,1.871,1934.0,1933.4,2.81144017]
[1772439415279,1.871,1934.0,1933.6,2.81254017]
[1772439416185,1.871,1934.4,1933.8,2.81144017]
[1772439416751,1.87,1934.7,1933.8,2.81144017]
[1772439417414,1.29225679,1934.6,1934.0,2.81144017]
[1772439417586,4.83319854,1934.6,1934.0,2.81144017]
[1772439417994,4.83319854,1934.6,1933.8,4.10418292]
[1772439419206,2.69225679,1934.6,1933.8,4.10418292]
[1772439419617,2.69225679,1934.6,1933.9,2.81144017]
[1772439420210,1.4,1934.6,1933.9,2.81144017]
[1772439420375,3.27,1934.6,1933.9,2.81144017]
[1772439420774,4.56226089,1934.6,1933.9,2.81144017]
[1772439420973,3.27,1934.6,1933.9,2.81144017]
[1772439421596,4.56225984,1934.6,1934.0,4.10409787]
[1772439421904,2.14094175,1934.4,1933.7,2.81144017]
[1772439422205,2.14094175,1934.2,1933.7,2.81144017]
[1772439422389,2.14094175,1934.2,1933.6,0.0011]
[1772439422390,1.87,1934.1,1933.6,0.0011]
[1772439422805,3.41771762,1934.0,1933.3,0.0011]
[1772439422980,2.14094175,1933.8,1933.3,0.0011]
[1772439423184,3.41771762,1933.6,1933.0,0.00153886]
[1772439423801,1.29299198,1933.5,1933.0,0.00153886]
[1772439424032,2.56022712,1933.5,1933.0,0.00153886]
[1772439424315,2.56022712,1933.5,1932.6,2.81144017]
[1772439424316,2.14094175,1933.2,1932.6,2.81144017]
[1772439424521,1.87,1933.1,1932.6,2.81144017]
[1772439424688,1.87,1933.1,1932.5,1.29365754]
[1772439425314,1.87,1933.1,1932.4,1.29368522]
[1772439425523,2.14094175,1932.8,1932.1,4.10533039]
[1772439425729,1.29339334,1932.9,1932.2,4.10527283]
[1772439426019,1.29339334,1932.9,1932.2,2.81144017]
[1772439426221,2.14094175,1932.8,1932.0,0.00153886]
[1772439426381,2.14094175,1932.6,1932.0,0.00153886]
[1772439426580,2.14094175,1932.4,1932.0,0.00153886]
[1772439427118,2.14094175,1932.2,1931.5,1.2954107]
[1772439427320,2.14094175,1932.0,1931.5,0.0011]
[1772439427490,1.87,1931.9,1931.5,1.29542782]
[1772439427694,1.29399585,1932.0,1931.5,2.81254017]
[1772439427898,2.14094175,1931.8,1931.2,2.81254017]
[1772439428096,2.14094175,1931.6,1931.0,0.00153886]
[1772439428322,1.869,1931.5,1931.0,0.00153886]
[1772439428825,2.14094175,1931.4,1930.6,4.10631436]
[1772439429294,4.2818835,1931.6,1930.5,5.17994331]
[1772439429295,7.64298376,1931.6,1930.5,2.81144017]
[1772439429610,0.00153886,1932.0,1931.0,2.81144017]
[1772439429818,2.14094175,1931.9,1931.0,2.81144017]
[1772439430015,2.14094175,1931.7,1930.6,2.81144017]
[1772439430189,1.869,1931.6,1930.6,2.81144017]
[1772439430393,2.14094175,1931.5,1930.6,2.81144017]
[1772439431021,2.14094175,1931.3,1930.6,2.81144017]
[1772439431326,2.14094175,1931.3,1930.4,4.10755891]
[1772439431491,1.868,1931.2,1930.4,4.10755891]
[1772439431688,2.69443936,1931.4,1930.7,1.29486714]
[1772439432124,1.19212108,1931.8,1930.9,2.81144017]
[1772439432125,1.868,1931.8,1930.9,2.81144017]
[1772439432532,4.61931565,1932.0,1930.9,2.81144017]
[1772439432740,1.868,1931.9,1931.2,2.81144017]
[1772439433034,1.86953886,1932.0,1931.2,2.81144017]
[1772439433403,0.00153886,1932.0,1931.2,2.81144017]
[1772439433742,2.14094175,1931.4,1930.7,1.29486714]
[1772439433909,1.868,1931.4,1930.7,1.29486714]
[1772439434114,3.43524899,1931.6,1930.8,2.69964818]
[1772439434445,1.867,1931.5,1930.8,2.69964818]
[1772439434731,1.867,1931.5,1930.8,2.63964818]
[1772439435434,2.14094175,1931.2,1930.5,2.69964818]
[1772439435742,1.29459893,1931.1,1930.4,0.0011]
[1772439435898,1.867,1931.0,1930.4,0.0011]
[1772439436098,1.867,1930.9,1930.4,0.0011]
[1772439436328,2.14094175,1930.7,1930.4,0.0011]
[1772439436534,1.867,1930.9,1930.4,0.0011]
[1772439436737,8.78721722,1931.2,1930.4,2.70074818]
[1772439436738,1.867,1931.2,1930.4,2.70074818]
[1772439437031,4.00794175,1931.2,1930.4,2.70074818]
[1772439437454,4.00794175,1931.2,1930.3,0.0011]
[1772439437455,2.14094175,1930.6,1930.3,0.0011]
[1772439437739,1.867,1930.5,1930.3,0.0011]
[1772439437941,3.16200421,1930.5,1930.3,0.0011]
[1772439438101,1.867,1930.5,1930.3,0.0011]
[1772439438302,3.16202015,1930.5,1930.1,0.0011]
[1772439438612,5.3029619,1930.5,1930.1,0.0011]
[1772439439135,2.14094175,1930.2,1929.4,4.0015553]
[1772439439426,2.14094175,1930.1,1929.4,4.0015553]
[1772439439646,2.14094175,1929.9,1929.4,2.70582134]
[1772439439838,3.16338002,1930.0,1929.2,4.00166226]
[1772439440008,1.29518512,1930.3,1929.3,2.70582134]
[1772439440336,1.868,1930.2,1929.3,2.70582134]
[1772439441903,2.14094175,1930.0,1929.3,2.70582134]
[1772439442108,1.29526967,1930.1,1929.3,4.00162508]
[1772439442315,2.14094175,1930.0,1929.3,4.00162508]
[1772439442604,1.29526967,1930.1,1929.3,4.00162508]
[1772439442812,5.17970218,1930.7,1929.3,4.00162508]
[1772439442813,6.71517077,1930.9,1929.9,2.70582134]
[1772439443137,1.412496,1930.8,1929.7,2.70582134]
[1772439443375,2.14094175,1930.5,1929.7,2.70582134]
[1772439443540,1.87,1930.4,1929.7,2.70582134]
[1772439443709,9.65969461,1930.4,1929.7,2.70582134]
[1772439443905,9.08481473,1930.4,1929.7,4.00130627]
[1772439444111,9.65869461,1930.3,1929.7,4.00130627]
[1772439444637,9.65869461,1930.3,1929.8,2.70582134]
[1772439445415,7.78969461,1930.3,1929.8,4.84676309]
[1772439445609,1.87,1930.5,1929.8,2.70582134]
[1772439445813,7.78969461,1930.4,1929.8,2.70582134]
[1772439446037,7.78969461,1930.4,1930.0,2.70582134]
[1772439446450,1.29479417,1930.9,1930.0,2.70582134]
[1772439446622,7.78969461,1930.9,1930.0,2.70582134]
[1772439446817,1.871,1930.8,1930.0,2.70582134]
[1772439447022,9.66069461,1930.8,1930.0,2.70582134]
[1772439447231,7.78969461,1930.7,1930.0,2.70582134]
[1772439447926,9.65969461,1930.7,1930.2,4.0010239]
[1772439448461,7.78969461,1930.6,1930.2,2.70582134]
[1772439449049,1.87,1930.7,1930.2,2.70582134]
[1772439450057,1.87,1930.7,1930.3,1.29513547]
[1772439450663,1.87,1930.7,1930.2,4.00098513]
[1772439451159,3.1648802,1930.7,1930.2,2.70582134]
[1772439451350,1.869,1930.7,1930.3,2.70582134]
[1772439451855,1.29622461,1931.0,1930.3,2.70582134]
[1772439452028,1.869,1930.9,1930.4,1.29506837]
[1772439452631,1.869,1930.9,1930.4,4.00088971]
[1772439452860,0.001,1930.6,1930.4,4.00088971]
[1772439454161,0.001,1930.6,1930.3,1.29508322]
[1772439454347,0.001,1930.6,1930.4,2.70582134]
[1772439454554,1.868,1930.8,1930.4,2.70582134]
[1772439454955,0.00153886,1931.0,1930.4,2.70582134]
[1772439456327,0.00153886,1931.0,1930.5,1.29500129]
[1772439456531,1.86853886,1931.0,1930.6,2.70582134]
[1772439457060,0.00153886,1931.0,1930.6,2.70582134]
[1772439457261,0.00153886,1931.0,1930.7,2.70582134]
[1772439458551,0.00153886,1931.0,1930.8,4.00062142]
[1772439458749,0.00153886,1931.0,1930.9,2.70582134]
[1772439459043,1.865,1931.5,1930.9,2.70582134]
[1772439459282,0.00153886,1932.0,1931.3,2.70582134]
[1772439459587,0.00153886,1932.0,1930.8,5.57668358]
[1772439459588,0.00153886,1932.0,1931.5,4.84676309]
[1772439459732,1.865,1932.5,1931.9,4.84676309]
[1772439459930,1.865,1932.5,1931.9,2.70582134]
[1772439460531,1.865,1932.5,1932.0,1.29399585]
[1772439460935,1.865,1932.5,1931.9,3.99983345]
[1772439461341,1.864,1932.5,1931.9,3.99983345]
[1772439461547,1.29351756,1932.8,1931.9,3.99983345]
[1772439461548,1.863,1932.7,1931.9,3.99983345]
[1772439461776,3.86101288,1933.0,1932.0,2.70582134]
[1772439461777,0.00253886,1933.0,1932.0,2.70582134]
[1772439462066,1.86553886,1933.0,1932.3,2.70582134]
[1772439462283,1.86553886,1933.0,1932.0,2.70582134]
[1772439462284,5.29981442,1933.0,1932.0,2.70582134]
[1772439462458,3.15887267,1933.0,1932.0,2.70582134]
[1772439462659,3.15887267,1933.0,1932.1,1.29392888]
[1772439462962,1.863,1932.9,1932.2,2.70582134]
[1772439464651,0.00253886,1933.0,1932.2,2.70582134]
[1772439464652,3.8,1932.8,1932.4,2.70582134]
[1772439465104,3.8,1933.4,1932.8,2.70582134]
[1772439465386,0.001,1932.9,1932.8,4.84676309]
[1772439465551,1.862,1933.6,1932.9,2.70582134]
[1772439465769,1.862,1933.6,1932.8,2.14094175]
[1772439465770,1.862,1933.6,1933.4,2.70582134]
[1772439466065,1.861,1933.9,1933.4,2.70582134]
[1772439466478,0.00153886,1934.0,1933.4,2.70582134]
[1772439466773,0.00153886,1934.0,1933.2,2.70582134]
[1772439467150,0.00153886,1934.0,1932.9,6.56256775]
[1772439467151,2.14094175,1933.8,1932.9,2.70582134]
[1772439467380,2.14094175,1933.6,1932.9,2.70582134]
[1772439467552,1.86,1933.5,1932.9,2.70582134]
[1772439467996,1.86,1933.4,1932.9,3.9992116]
[1772439468359,1.86,1933.4,1932.9,2.70582134]
[1772439468558,1.86,1933.4,1932.9,3.9992041]
[1772439468766,5.17105389,1933.9,1933.0,2.80367106]
[1772439469065,3.15183756,1933.8,1933.0,2.80367106]
[1772439469270,5.29277931,1933.8,1933.0,2.80367106]
[1772439469453,5.29277931,1933.8,1932.8,1.29341573]
[1772439469777,5.29277931,1933.8,1932.8,4.09708679]
[1772439469955,2.14094175,1933.6,1932.8,2.80367106]
[1772439470289,3.43377931,1933.8,1932.8,4.09711425]
[1772439470582,1.859,1933.8,1933.1,2.80367106]
[1772439470789,1.859,1933.8,1933.3,4.0967968]
[1772439471292,0.00153886,1934.0,1933.4,4.94461281]
[1772439471474,0.00153886,1934.0,1933.4,2.80367106]
[1772439471797,3.43514059,1934.0,1933.1,1.29323735]
[1772439471976,1.29419884,1934.0,1933.2,2.80367106]
[1772439472760,0.00153886,1934.0,1933.2,4.09680765]
[1772439473557,0.00153886,1934.0,1933.2,2.80367106]
[1772439473756,2.14248061,1934.0,1933.0,1.29332643]
[1772439473990,0.00153886,1934.0,1933.0,4.09699749]
[1772439474356,2.14248061,1934.0,1933.0,4.09699749]
[1772439474558,1.53136971,1934.0,1933.0,4.09699749]
[1772439474880,1.29279139,1933.8,1933.0,4.09699749]
[1772439475664,1.29279139,1933.8,1933.1,2.80367106]
[1772439475856,4.34050051,1933.6,1932.6,2.80367106]
[1772439476056,4.34050051,1933.6,1932.4,6.67299174]
[1772439476057,1.52983085,1933.3,1932.4,6.67299174]
[1772439476258,3.38683085,1933.3,1932.5,2.80367106]
[1772439477064,1.29319263,1933.2,1932.5,2.80367106]
[1772439477268,1.29319263,1933.2,1932.5,4.09731269]
[1772439477961,1.29319263,1933.2,1932.9,0.0011]
[1772439478575,1.29319263,1933.2,1932.3,1.29379294]
[1772439478576,1.857,1933.1,1932.3,1.29379294]
[1772439478757,1.857,1933.1,1932.6,0.0011]
[1772439478952,1.857,1933.1,1932.2,4.09752794]
[1772439479286,5.17277053,1933.3,1932.5,2.80367106]
[1772439479287,1.29317131,1933.3,1932.5,2.80367106]
[1772439479478,3.15117131,1933.3,1932.7,2.80367106]
[1772439479997,3.15117131,1933.3,1932.4,2.80367106]
[1772439480172,4.68100216,1933.3,1932.4,2.80367106]
[1772439480377,1.52983085,1932.9,1932.1,2.80367106]
[1772439480559,1.858,1932.8,1932.1,2.80367106]
[1772439480754,1.52983085,1932.7,1932.0,0.00153886]
[1772439481180,1.29359412,1932.6,1932.0,0.00153886]
[1772439481857,2.81066966,1933.1,1932.2,4.33350191]
[1772439482060,3.15136929,1933.0,1932.2,2.80367106]
[1772439483184,3.8,1932.9,1932.3,4.33350191]
[1772439483395,3.8,1932.9,1932.3,2.80367106]
[1772439483690,1.52983085,1932.6,1932.0,0.00153886]
[1772439483998,9.67033136,1932.8,1932.0,4.09919859]
[1772439483999,3.8,1932.8,1932.0,4.09919859]
[1772439484206,3.8,1932.8,1932.1,2.80367106]
[1772439485195,1.29352718,1932.7,1932.1,2.80367106]
[1772439486192,1.29352718,1932.7,1932.1,4.09759547]
[1772439486600,5.09350356,1932.8,1932.2,2.80367106]
[1772439486890,6.95150356,1932.8,1932.2,2.80367106]
[1772439487283,8.48133441,1932.8,1932.0,0.00153886]
[1772439487476,1.52983085,1932.6,1932.0,0.00153886]
[1772439487697,1.52983085,1932.4,1932.0,0.00153886]
[1772439487920,1.86,1932.3,1932.0,0.00153886]
[1772439488466,1.52983085,1932.2,1931.6,2.80367106]
[1772439488770,1.52983085,1932.2,1931.5,1.29429852]
[1772439488771,1.52983085,1931.8,1931.0,4.09983764]
[1772439489101,1.86,1931.7,1931.0,2.80520992]
[1772439489395,1.29426382,1931.6,1931.0,2.80520992]
[1772439489564,1.29426382,1931.6,1931.0,4.09987099]
[1772439489760,1.29426382,1931.6,1931.0,2.80520992]
[1772439489963,1.29426382,1931.6,1931.0,4.09987075]
[1772439490195,1.29426382,1931.6,1931.0,2.80520992]
[1772439490389,1.29426382,1931.6,1931.0,4.09986877]
[1772439491164,1.29426382,1931.6,1931.0,2.80520992]
[1772439491370,1.29426382,1931.6,1931.0,0.00153886]
[1772439491371,2.82409467,1931.6,1931.0,0.00153886]
[1772439491769,1.29426382,1931.6,1931.0,1.29620278]
[1772439491968,1.29426382,1931.6,1931.0,0.00153886]
[1772439493022,2.82409467,1931.6,1931.0,0.00153886]
[1772439495934,1.29386191,1932.2,1931.2,2.64520307]
[1772439496108,0.065536,1932.6,1931.5,1.52983085]
[1772439496109,1.52983085,1932.6,1931.5,1.52983085]
[1772439496298,1.863,1932.5,1931.8,2.64520307]
[1772439496498,0.001,1932.7,1931.9,4.17503392]
[1772439496809,1.29454193,1932.7,1932.0,2.64520307]
[1772439497023,0.001,1932.7,1932.0,2.64520307]
[1772439497322,1.52983085,1932.6,1932.0,2.64520307]
[1772439497624,1.29454106,1932.7,1932.0,3.93915085]
[1772439498198,1.29454106,1932.7,1932.0,2.64520307]
[1772439498603,1.29454106,1932.7,1932.0,3.93919892]
[1772439498832,1.29454106,1932.7,1932.0,2.64520307]
[1772439499032,1.29454106,1932.7,1931.8,1.29409209]
[1772439499217,1.52983085,1932.5,1931.7,3.93128807]
[1772439499555,3.15574886,1932.4,1931.7,3.93128807]
[1772439499895,1.29374886,1932.4,1931.7,3.93128807]
[1772439500096,3.15474886,1932.4,1931.7,3.93128807]
[1772439500627,1.52983085,1932.2,1931.4,3.93148819]
[1772439500816,7.32577157,1932.4,1931.4,3.93148819]
[1772439501629,1.29392888,1932.1,1931.4,3.93148819]
[1772439501810,3.8,1932.3,1931.4,3.93148819]
[1772439502127,5.09385386,1932.3,1931.6,2.63709409]
[1772439502325,3.8,1932.3,1931.6,2.63709409]
[1772439502500,3.8,1932.3,1931.8,0.0011]
[1772439502696,3.801,1932.3,1931.8,0.0011]
[1772439502901,5.09479496,1932.3,1931.8,0.0011]
[1772439504034,3.801,1932.3,1931.8,2.63819409]
[1772439505330,0.001,1932.7,1932.0,2.63709409]
[1772439505499,0.001,1932.7,1931.8,0.0011]
[1772439505500,1.865,1932.6,1931.8,2.63819409]
[1772439505699,1.865,1932.6,1931.9,2.63709409]
[1772439505932,0.001,1932.7,1932.0,1.29399585]
[1772439506136,0.001,1932.7,1932.1,2.63709409]
[1772439506842,1.865,1932.6,1931.8,3.9322795]
[1772439507040,3.39483085,1932.6,1931.8,3.9322795]
[1772439507244,3.39483085,1932.6,1931.8,3.93232304]
[1772439507453,1.52983085,1932.4,1931.8,0.0011]
[1772439508243,1.29379495,1932.3,1931.8,0.0011]
[1772439508429,1.864,1932.2,1931.8,0.0011]
[1772439509820,1.4,1932.3,1932.0,4.16692494]
[1772439510018,0.001,1932.7,1932.2,4.16692494]
[1772439510356,0.001,1932.7,1932.2,3.93090746]
[1772439510651,0.001,1932.7,1932.4,1.52983085]
[1772439510853,0.00153886,1933.0,1932.4,4.16692494]
[1772439511156,0.00153886,1933.0,1932.4,2.63709409]
[1772439511356,0.00153886,1933.0,1932.5,2.63709409]
[1772439512251,0.00153886,1933.0,1932.5,3.93071069]
[1772439512614,0.00153886,1933.0,1932.2,2.63709409]
[1772439512816,0.00153886,1933.0,1932.3,1.29379495]
[1772439513012,0.00153886,1933.0,1932.3,3.93088904]
[1772439513239,0.00153886,1933.0,1932.4,2.63709409]
[1772439514039,0.00153886,1933.0,1932.3,1.29379495]
[1772439514836,1.29486529,1933.0,1932.2,2.63709409]
[1772439515050,1.52983085,1932.8,1932.1,1.29389051]
[1772439515248,3.39183085,1932.8,1932.1,1.29389051]
[1772439515445,1.862,1932.8,1932.1,1.29389051]
[1772439515942,1.861,1932.8,1932.1,1.29389051]
[1772439517423,1.862,1932.9,1932.1,2.63709409]
[1772439517925,0.001,1932.9,1932.5,4.16692494]
[1772439518141,0.001,1932.9,1932.5,2.63709409]
[1772439518339,0.00153886,1933.0,1932.5,2.63709409]
[1772439518937,1.29486772,1933.0,1932.5,2.63709409]
[1772439519129,1.29486772,1933.0,1932.2,4.02109409]
[1772439519331,1.29346026,1932.8,1932.0,1.29399585]
[1772439519557,1.52983085,1932.7,1932.0,3.93108994]
[1772439519756,1.29346026,1932.8,1932.0,2.63709409]
[1772439519757,2.82329111,1932.8,1932.0,2.63709409]
[1772439520125,3.15246026,1932.8,1932.0,2.63709409]
[1772439520631,1.859,1932.8,1932.0,2.63709409]
[1772439521331,1.859,1932.8,1932.1,3.93102297]
[1772439521532,1.29491438,1933.0,1932.2,2.63709409]
[1772439521833,0.00153886,1933.0,1932.3,2.63709409]
[1772439522039,0.00153886,1933.0,1932.5,2.63709409]
[1772439522531,1.52983085,1932.7,1931.9,3.93110776]
[1772439522725,3.38783085,1932.7,1931.9,3.93110776]
[1772439523072,3.38683085,1932.8,1932.0,2.63709409]
[1772439523244,1.857,1932.8,1932.0,2.63709409]
[1772439523557,1.29352718,1932.7,1932.0,3.93104965]
[1772439523856,2.69352718,1932.7,1932.0,3.93104965]
[1772439524255,2.69352718,1932.7,1932.0,2.63709409]
[1772439524468,1.52983085,1932.6,1932.0,3.93108541]
[1772439524639,1.4,1932.7,1932.1,2.63709409]
[1772439524842,3.8,1932.9,1932.3,2.63709409]
[1772439525146,5.09339565,1932.9,1932.3,2.63709409]
[1772439525524,5.09339565,1932.9,1932.3,3.93083373]
[1772439526344,3.8,1932.9,1932.3,3.93083373]
[1772439526758,5.09339379,1932.9,1932.3,3.93083373]
[1772439526963,5.09339668,1932.9,1932.3,3.93083373]
[1772439527452,5.09339707,1932.9,1932.3,3.93083373]
[1772439527652,5.09339707,1932.9,1932.4,0.0011]
[1772439528160,2.82422792,1932.9,1932.4,0.0011]
[1772439528346,1.52983085,1932.7,1932.4,0.0011]
[1772439528846,1.4,1932.8,1932.4,0.0011]
[1772439529460,1.29352718,1932.7,1932.4,0.0011]
[1772439529645,2.69351048,1932.8,1932.4,0.0011]
[1772439531069,4.55451048,1932.8,1932.4,0.0011]
[1772439531268,6.08434133,1932.8,1932.4,0.0011]
[1772439531472,4.55551048,1932.8,1932.4,0.0011]
[1772439532275,2.69351048,1932.8,1932.4,0.0011]
[1772439532441,1.52983085,1932.6,1932.1,0.0011]
[1772439532642,2.50173886,1932.5,1932.1,0.0011]
[1772439532837,1.52983085,1932.4,1932.1,0.0011]
[1772439533378,2.50173886,1932.5,1932.1,0.0011]
[1772439534040,1.293728,1932.4,1932.1,0.0011]
[1772439534363,5.664,1932.7,1932.1,2.73193803]
[1772439534535,6.95752929,1932.7,1932.1,2.73193803]
[1772439535251,9.45926815,1932.7,1932.1,0.0011]
[1772439536175,4.64563845,1932.6,1932.1,0.0011]
[1772439536380,2.14389959,1932.4,1932.1,0.0011]
[1772439536534,1.867,1932.3,1931.8,0.0011]
[1772439536740,4.36873886,1932.3,1931.8,0.0011]
[1772439538268,3.4377615,1932.2,1931.8,0.0011]
[1772439538478,1.29386191,1932.2,1931.8,0.0011]
[1772439538648,1.4,1932.1,1931.8,0.0011]
[1772439538846,2.50173886,1931.9,1931.0,0.00153886]
[1772439539049,2.14389959,1931.6,1931.0,0.00153886]
[1772439540287,1.29433083,1931.5,1931.0,0.00153886]
[1772439540773,1.868,1932.0,1931.2,2.73083803]
[1772439540935,1.868,1932.0,1931.4,2.73083803]
[1772439541139,1.868,1932.0,1931.8,0.0011]
[1772439541672,5.17530079,1932.3,1931.8,0.0011]
[1772439541673,3.16182397,1932.3,1931.8,0.0011]
[1772439542571,1.868,1932.3,1931.8,0.0011]
[1772439542770,1.2937115,1932.5,1931.8,0.0011]
[1772439543072,7.04346146,1932.6,1931.8,2.73193803]
[1772439543073,3.16261161,1932.6,1931.8,2.73193803]
[1772439543444,5.3065112,1932.6,1931.8,2.73193803]
[1772439544154,3.16261161,1932.6,1931.8,2.73193803]
[1772439544542,3.8,1932.6,1932.0,2.73083803]
[1772439544741,0.001,1932.8,1932.1,2.73083803]
[1772439544945,1.29447426,1932.8,1932.1,2.73083803]
[1772439545263,0.001,1932.8,1932.1,2.73083803]
[1772439546551,0.001,1932.8,1932.3,2.73083803]
[1772439548251,0.001,1932.9,1932.5,2.73083803]
[1772439548572,0.001,1932.9,1932.7,2.73083803]
[1772439548770,0.001,1932.9,1932.8,1.29346026]
[1772439549190,0.001,1932.9,1932.8,4.02429829]
[1772439549488,3.15777009,1933.9,1933.0,2.73083803]
[1772439549649,0.00253886,1933.8,1933.0,2.73083803]
[1772439550046,0.00253886,1933.7,1933.0,2.73083803]
[1772439550243,0.00253886,1933.7,1933.3,2.73083803]
[1772439550447,0.001,1933.9,1933.3,2.73083803]
[1772439550678,0.00253886,1933.8,1933.4,4.02389689]
[1772439551269,0.001,1933.9,1933.5,2.73083803]
[1772439551577,0.00353886,1933.9,1933.5,2.73083803]
[1772439551778,0.00153886,1934.0,1933.8,2.73083803]
[1772439551980,1.29224574,1934.7,1933.8,2.73083803]
[1772439552157,0.00253886,1934.7,1934.0,2.73083803]
[1772439552481,0.00253886,1935.0,1933.7,3.52489959]
[1772439552482,0.00253886,1934.6,1934.2,2.73083803]
[1772439552678,0.00253886,1934.6,1934.3,1.29245721]
[1772439553184,0.00253886,1935.0,1934.3,4.02329524]
[1772439553349,0.00253886,1934.9,1934.3,4.02329524]
[1772439553755,0.001,1934.5,1934.4,2.37398934]
[1772439553956,0.00253886,1934.8,1934.4,2.37398934]
[1772439554151,0.00253886,1935.0,1934.4,2.37398934]
[1772439554395,0.00253886,1935.0,1934.4,3.75598934]
[1772439554561,0.00253886,1935.0,1934.7,2.37398934]
[1772439554764,0.00253886,1935.0,1934.8,3.66611255]
[1772439555488,0.00253886,1935.0,1934.9,2.37398934]
[1772439556184,0.001,1935.3,1934.9,2.37398934]
[1772439556384,0.001,1935.8,1935.1,2.37398934]
[1772439556682,0.00153886,1936.0,1935.7,1.29152244]
[1772439556866,1.29096968,1936.6,1935.8,2.14389959]
[1772439557062,2.14389959,1936.4,1935.6,1.385]
[1772439557365,2.14389959,1936.4,1935.4,3.71856148]
[1772439557556,2.14389959,1936.2,1935.4,2.42686998]
[1772439557756,4.65486513,1936.4,1935.4,3.71858566]
[1772439557972,2.51096554,1936.4,1935.4,3.71858566]
[1772439558285,3.43486927,1936.6,1935.5,2.42686998]
[1772439558660,3.43486927,1936.6,1935.3,6.55196573]
[1772439558661,4.65486513,1936.4,1935.3,1.29173299]
[1772439558867,2.14389959,1936.2,1935.3,1.29173299]
[1772439559067,4.65486513,1936.4,1935.4,2.42686998]
[1772439559686,2.14389959,1935.8,1935.0,0.00153886]
[1772439559869,2.14389959,1935.8,1935.0,1.2935184]
[1772439560268,2.51096554,1935.9,1935.0,0.00153886]
[1772439560791,1.29145572,1935.8,1935.0,1.29352097]
[1772439561788,3.14334145,1936.0,1935.1,2.42686998]
[1772439562886,3.14334145,1936.0,1935.2,1.29185613]
[1772439563263,2.14389959,1935.7,1935.0,0.00153886]
[1772439564396,4.65486513,1935.7,1935.0,0.00153886]